Cogmind - Beta 16.1 @@@ ROGUE MODE // 2026.04.06 @ 20:27:01 Player: Donhimself Result: Destroyed by D-53 Grenadier with Mini Grenade Launcher Performance ------------- Evolutions (0) 0 Regions Visited (2) 400 Robots Destroyed (10) 50 Value Destroyed (149) 149 Prototype IDs (4) 80 Alien Tech Used (0) 0 Bonus (0) 0 TOTAL SCORE: 679 Bonus ------- None Cogmind --------- Core Integrity 0/250 Matter 339/400 Energy 100/100 System Corruption 0% Temperature Cool (0) Movement Walking (120) Location -10/Mines Parts ------- > --- POWER (1) -------- (None) > --- PROPULSION (2) --- Aluminum Leg > --- UTILITY (2) ------ Small Storage Unit Medium Matter Pod > --- WEAPON (2) ------- (None) > --- INVENTORY (8) ---- Ion Engine Light Treads Light Treads Aluminum Leg Wheel Wheel Assault Rifle Peak State ------------ > --- POWER ------------ Ion Engine > --- PROPULSION ------- Aluminum Leg Aluminum Leg > --- UTILITY ---------- Small Storage Unit Medium Matter Pod > --- WEAPON ----------- Medium Laser Light Assault Rifle > --- INVENTORY -------- Ion Engine Light Treads Light Treads Aluminum Leg Aluminum Leg Wheel Wheel Assault Rifle [Rating: 7] Favorites ----------- Power Light Ion Engine Engine Light Ion Engine Propulsion Aluminum Leg Leg Aluminum Leg Utility Small Storage Unit Storage Small Storage Unit Weapon Medium Laser Energy Gun Medium Laser Ballistic Gun Light Assault Rifle Build | -11 -10 -10 ------- Run | Yrd Mat Min Slots Evolved . | . . . Power . | . . . Propulsion . | . . . Utility . | . . . Weapon . | . . . Parts Attached 11 | 6 3 2 Power 2 | 1 1 . Engine 2 | 1 1 . Core . | . . . Reactor . | . . . Propulsion 5 | 2 1 2 Treads . | . . . Leg 5 | 2 1 2 Wheel . | . . . Hover . | . . . Flight . | . . . Utility 2 | 1 1 . Device . | . . . Storage 2 | 1 1 . Processor . | . . . Hackware . | . . . Protection . | . . . Artifact . | . . . Weapon 2 | 2 . . Energy Gun 1 | 1 . . Energy Cannon . | . . . Ballistic Gun 1 | 1 . . Ballistic Cannon . | . . . Launcher . | . . . Special Weapon . | . . . Impact Weapon . | . . . Slashing Weapon . | . . . Piercing Weapon . | . . . Special Melee Weapon . | . . . Unidentified Prototypes . | . . . Parts Lost 5 | . . 5 Power 1 | . . 1 Propulsion 2 | . . 2 Utility . | . . . Weapon 2 | . . 2 Highest Loss Streak 5 | . . 5 To Critical Strikes . | . . . Average Backups 6 | 3 7 7 Power . | . 1 1 Propulsion 4 | 1 5 5 Utility . | . . . Weapon 1 | 1 1 1 Tool/Special . | . . . Unused Backups 7 | . . 7 Power 1 | . . 1 Propulsion 5 | . . 5 Utility . | . . . Weapon 1 | . . 1 Tool/Special . | . . . Average Slot Usage (%) 89 | . 87 96 Engine 13 | . 14 12 Leg 27 | . 28 26 Storage 19 | . 16 28 Energy Gun 14 | . 14 14 Ballistic Gun 13 | . 14 12 Peak Build Rating 7 | 6 7 7 Average Rating 5 | 3 6 6 On Entrance 4 | . 6 7 Avg Prop Armor Cover (%) . | . . . Naked Turns . | . . . Heaviest Build 15 | 11 15 15 Greatest Support 20 | 20 20 20 Greatest Overweight (x) . | . . . Average Overweight (x) . | . . . Largest Inventory Capacity 8 | 8 8 8 Average Capacity 7 | 7 8 8 Most Carried 8 | 8 8 8 Average Carried 7 | 3 7 7 Final Capacity 8 | 8 8 8 Final Carried 8 | 6 8 7 Class Distribution -------------------- 100% | Mutant Dominant Class ---------------- Mutant | -10/Materials Mutant | -10/Mines Resources | -11 -10 -10 ----------- Run | Yrd Mat Min Matter Collected 355 | 260 65 30 Remotely . | . . . Salvage Created 218 | . 218 . Parts 21 | . 21 . Haulers Intercepted . | . . . Recyclers Shooed 1 | . 1 . Parts Field Recycled . | . . . Retrieved Matter . | . . . Parts Self-Destructed . | . . . Prevented . | . . . Parts Restored . | . . . Kills | -11 -10 -10 ------- Run | Yrd Mat Min Combat Hostiles Destroyed 7 | . 7 . Guns 7 | . 7 . Classes Destroyed 4 | . 4 . Worker 2 | . 2 . Watcher 1 | . 1 . Swarmer 5 | . 5 . Grunt 2 | . 2 . Best Kill Streak 3 | . 3 . Combat Bots Only 3 | . 3 . Max Kills in Single Turn 2 | . 2 . Gunslinging . | . . . Exploded . | . . . Melee . | . . . Uniques/NPCs Destroyed . | . . . Combat | -11 -10 -10 -------- Run | Yrd Mat Min Hostile Shots Fired 62 | . 52 10 Missed 17 | . 17 . Hits 45 | . 35 10 Projectile 45 | . 35 10 AOE 12 | . . 12 Damage Taken 797 | . 308 489 Core 262 | . 57 205 Absorbed by Shields . | . . . Core Remaining (%) 100 | 100 . . Volleys Fired 31 | . 30 1 Largest 2 | . 2 2 Hottest 70 | . 70 70 Shots Fired 62 | . 60 2 Gun 62 | . 60 2 Cannon . | . . . Launcher . | . . . Special . | . . . Kinetic 31 | . 30 1 Thermal 31 | . 30 1 Explosive . | . . . Electromagnetic . | . . . Robot Hit Streak 5 | . 5 . Robot Miss Streak 4 | . 4 2 Penetration Max . | . . . Secondary Targets 1 | . 1 . Max Gunslinging Chain 1 | . 1 . Shots Hit Robots 26 | . 26 . Core Hits 14 | . 14 . Critical Kills . | . . . Critical Parts Destroyed . | . . . Critical Strikes 2 | . 2 . Burn 2 | . 2 . Melee Attacks . | . . . Impact . | . . . Slashing . | . . . Piercing . | . . . Sneak Attacks . | . . . Combat Hostiles . | . . . Follow-up Attacks . | . . . Damage Inflicted 308 | . 308 . Guns 308 | . 308 . Cannons . | . . . Explosions . | . . . Melee . | . . . Ramming . | . . . Kinetic 122 | . 122 . Thermal 186 | . 186 . Explosive . | . . . Electromagnetic . | . . . Impact . | . . . Slashing . | . . . Piercing . | . . . Highest Corruption . | . . . Average Corruption . | . . . Corruption Purged . | . . . Corruption Blocked . | . . . Overload Shots . | . . . Overflow Damage . | . . . Projectiles . | . . . Explosions . | . . . Melee . | . . . Knockbacks . | . . . Impact . | . . . Kinetic . | . . . Secondary . | . . . Self-Inflicted Damage . | . . . Shots . | . . . Rammed . | . . . Targets Rammed . | . . . Kicked . | . . . Crushed . | . . . Highest Temperature 160 | . 160 30 Average Temperature 51 | . 52 16 Received Heat Transfer 51 | . 51 . Siege Activations . | . . . Martial Activations . | . . . Shielding Activations . | . . . Robots Disrupted . | . . . Combat Hostiles . | . . . Robots Corrupted . | . . . Combat Hostiles . | . . . Parts Fried . | . . . Impact Corruptions . | . . . Robots Melted . | . . . Combat Hostiles . | . . . Parts Melted 2 | . 2 . Heat Transferred 703 | . 703 . Parts Sabotaged . | . . . Parts Stolen . | . . . Parts Stripped . | . . . Power Chain Reactions . | . . . Alert | -11 -10 -10 ------- Run | Yrd Mat Min Maximum Alert Level . | . . . Low Security (%) 100 | 100 100 100 Level 1 . | . . . Level 2 . | . . . Level 3 . | . . . Level 4 . | . . . Level 5 . | . . . High Security . | . . . Max Security . | . . . Peak Influence 159 | . 159 52 Initial 52 | . . 52 Average 65 | . 95 30 Influence Increases 264 | . 264 . Destroy 0b10 Robot/C 140 | . 140 . Destroy 0b10 Robot/NC 15 | . 15 . Destroy Leader 32 | . 32 . Successful Hack 32 | . 32 . Lose Combat Pursuer 45 | . 45 . Influence Decreases 264 | . 130 134 Entered New Map 82 | . . 82 Time Decay 170 | . 130 40 Lost Part 12 | . . 12 Squads Dispatched . | . . . Investigation . | . . . Extermination . | . . . Reinforcement . | . . . Assault . | . . . Garrison . | . . . Intercept . | . . . Searches Triggered . | . . . Construction Impeded . | . . . Haulers Reinforced . | . . . Active Scanning Responses . | . . . Cargo Convoy Interrupts . | . . . Stealth | -11 -10 -10 --------- Run | Yrd Mat Min Distress Signals . | . . . Communications Jammed . | . . . Distress Signals . | . . . Times Spotted 16 | . 14 2 Peak Tracking Total 5 | . 5 2 Tactical Retreats 2 | . 2 . Traps | -11 -10 -10 ------- Run | Yrd Mat Min Traps Triggered . | . . . Indirectly . | . . . Trap Hack Attempts . | . . . Triggered . | . . . Disarmed . | . . . Reprogrammed . | . . . Reused . | . . . Traps Extracted . | . . . Installed . | . . . Triggered . | . . . Machines | -11 -10 -10 ---------- Run | Yrd Mat Min Machines Disabled . | . . . Max in Single Turn . | . . . Machines Repaired . | . . . Machines Dismantled . | . . . Machines Sabotaged . | . . . Overloaded Fab Kills . | . . . Hacking | -11 -10 -10 --------- Run | Yrd Mat Min Machines Accessed 7 | . 7 . Terminals 6 | . 6 . Fabricators . | . . . Repair Stations 1 | . 1 . Recycling Units . | . . . Scanalyzers . | . . . Garrison Access . | . . . Total Hacks 11 | . 11 . Successful 7 | . 7 . Failed 4 | . 4 . Catastrophic 1 | . 1 . Database Lockouts . | . . . Manual . | . . . Terminals 9 | . 9 . Fabricators . | . . . Repair Stations 2 | . 2 . Recycling Units . | . . . Scanalyzers . | . . . Garrison Access . | . . . Terminal Hacks 7 | . 7 . Prototype ID Bank 3 | . 3 . Branch Access Points 1 | . 1 . Hauler Manifests 2 | . 2 . Zone Layout 1 | . 1 . Fabricator Hacks . | . . . Repair Station Hacks . | . . . Recycling Unit Hacks . | . . . Scanalyzer . | . . . Garrison Access Hacks . | . . . Unauthorized Hacks . | . . . Terminals . | . . . Fabricators . | . . . Repair Stations . | . . . Recycling Units . | . . . Scanalyzers . | . . . Garrison Access . | . . . Data Cores Recovered . | . . . Used . | . . . Hacking Detections 4 | . 4 . Full Trace Events . | . . . Feedback Events . | . . . Feedback Blocked . | . . . Robot Schematics Acquired . | . . . Robots Built . | . . . Authchips . | . . . Time . | . . . Total Robot Build Rating . | . . . Part Schematics Acquired . | . . . Parts Built . | . . . Authchips . | . . . Time . | . . . Total Part Build Rating . | . . . Part Studies Acquired . | . . . Parts Repaired . | . . . Time . | . . . Parts Recycled . | . . . Recycled Matter . | . . . Retrieved Matter . | . . . Retrieved Components . | . . . Parts Scanalyzed . | . . . Part Schematics Acquired . | . . . Parts Damaged . | . . . Bothacking | -11 -10 -10 ------------ Run | Yrd Mat Min Used RIF Installer . | . . . Robots Hacked . | . . . Non-combat . | . . . Combat . | . . . Robot Hacks Applied . | . . . Relay Couplers Released . | . . . Fabnet Peak Effective % . | . . . Robots Rewired . | . . . Allies Hacked . | . . . Hacks Repelled . | . . . Allies | -11 -10 -10 -------- Run | Yrd Mat Min Total Allies . | . . . Largest Group . | . . . Highest-Rated Group . | . . . Highest-Rated Ally . | . . . Total Orders . | . . . Ally Attacks . | . . . Total Damage . | . . . Kills . | . . . Allies Corrupted . | . . . Allies Melted . | . . . Intel | -11 -10 -10 ------- Run | Yrd Mat Min Active Infowar (turns) . | . . . Robot Analysis Total . | . . . Derelict Logs Recovered . | . . . Drone Launches . | . . . Drone Recoveries . | . . . Exploration | -11 -10 -10 ------------- Run | Yrd Mat Min Turns Passed 454 | 74 282 98 Spaces Moved 275 | 51 148 76 Core 3 | 3 . . Treads . | . . . Legs 272 | 48 148 76 Wheels . | . . . Hover . | . . . Flight . | . . . Fastest Speed 50 | 50 120 120 Average Speed 119 | 115 120 120 Slowest Speed 120 | 120 120 120 Overloaded Moves . | . . . Propulsion Burnouts . | . . . Robots Hopped . | . . . Potential Cave-ins . | . . . Cave-ins Triggered . | . . . Exploration Rate (%) 20 | 4 34 23 Regions Visited 2 Branch Regions 1 Pre-discovered Areas . | . . . Known Exits Taken 1 | . 1 . Unknown Exits Taken 1 | 1 . . Scrap Searched 1 | . . 1 Spaces Dug . | . . . Terrain Destroyed . | . . . Melee . | . . . Projectile . | . . . AOE . | . . . Terrain Rammed . | . . . Walls Destroyed . | . . . Machines Disabled . | . . . Actions | -11 -10 -10 --------- Run | Yrd Mat Min Total 344 | 64 199 81 Wait 16 | . 15 1 Move 273 | 50 147 76 Hop . | . . . Pick Up 10 | 8 2 . Fast Attach 5 | 4 1 . Attach 3 | 2 . 1 Detach . | . . . Swap 3 | . 2 1 Drop 3 | . 2 1 Fire 31 | . 30 1 Melee . | . . . Ram . | . . . Kick . | . . . Crush . | . . . Escape Stasis . | . . . Rewire . | . . . Trap . | . . . Miscellaneous . | . . . Route ------- -11/Scrapyard -10/Materials (discovered 2 exits: *Min x2) -10/Mines History --------- Turn | Location | Event 38 | -11/Scrapyard | Discovered new exit (range 15) 75 | -11/Scrapyard | Entered Materials 150 | -10/Materials | Identified exit to Mines 328 | -10/Materials | Build established: Mutant 357 | -10/Materials | Entered Mines 407 | -10/Mines | Assembled infested the area 412 | -10/Mines | Assisted by a Guerilla fighting off Assembled 450 | -10/Mines | Core integrity fell below 50% 454 | -10/Mines | Core integrity fell below 20% 455 | -10/Mines | Destroyed by D-53 Grenadier with Mini Grenade Launcher Last Messages --------------- 00379_ Acquired 30 matter. 00380_ Dropped Aluminum Leg. 00392_ T-07 Excavator is excavating. 00407_ ALERT: Infestation in the mines, dispatching Demolisher response squad. 00412_ A derelict emerges from the shadows: "You need to get out of here! I've been tracking a group of Assembled to figure out where they're coming from, and they're closing on this area, come on!" 00441_ HV Slug penetrates Wall. 00443_ UA-96H(h) destroyed. 00445_ Ion Engine destroyed. 00445_ Lgt. Assault Rifle destroyed. 00447_ Aluminum Leg destroyed. 00450_ The unstable cave ceiling collapses. 00451_ Med. Laser destroyed. 00452_ The unstable cave ceiling collapses. 00454_ U-05 Engineer lays Concrete. 00455_ The unstable cave ceiling collapses. Map ----- +----------------------------------------------------+ | ???????????????????????????????????????????????? | | ???????????????????????????????????????????????? | | ???????????????????????????????????????????????? | | ???????????????????????????????????????????????? | | ???????????????????????????????????????????????? | | ???????????????????????????????????????????????? | | ????????????????????????????????####???????????? | | ???????????????????????????????## ##??????????? | | ??????????????????????????????## ######?????? | | ?????????????????????????????## #?????? | | ????????????????????????????## #?????? | | ???????????????????????????## #?????? | | ???????????????????????????# ####?????? | | ??????????????????????????## ## #????????? | | ???????????????????????#### ### #????????? | | ??????????????????????## #?# #????????? | | ?????????????????????## ##?# #????????? | | ?????????????????????# ##??# #????????? | | ?????????????????????# ###???# #????????? | | ?????????? ?????????## ##?????# ####?????? | | ????????? ???????## ####### ??#???? | | ?????????# ???### # # # ##??? | | ?????????# r ## #??? | | ??????????# r # ??? | | ???????????## """ #?????? | | ????????????? """ @ #??????? | | ????????????? """ # # ####???????? | | ??????????? u # #??????????? | | ??????????# u# # #??????????? | | ????????? #### dd #?????????? | | ?????????? ##???####### # ##?????????? | | ??????????# #???????????### ##??????????? | | ??????????## ??????????######%###???????????? | | ???????????## ???????????# "#?????????????? | | ????????????##????????????# #### #?????????????? | | ??????????????????????????#????# #?????????????? | | ???????????????# ?????#### ???# #?????????????? | | ????????????????# ### #??# #?????????????? | | ???????????????????# ### #?????????????? | | ????????????????????# ## ###???????????? | | ??????????????????????????# #???????????? | | ??????????????????????????## #???????????? | | ???????????????????????????## #???????????? | | ????????????????????????????## ##???????????? | | ?????????????????????????????######????????????? | | ???????????????????????????????????????????????? | | ???????????????????????????????????????????????? | | ???????????????????????????????????????????????? | | ???????????????????????????????????????????????? | | ???????????????????????????????????????????????? | +----------------------------------------------------+ Best States ------------- Heat Dissipation 25 Energy Generation 10 Energy Capacity 250 Matter Stores 335 Matter Capacity 400 Sight Range 16 Terrain Scan Density 10 Evasion (%) 55 Item Schematics ----------------- None Robot Schematics ------------------ None Fabricated ------------ Nothing Repaired ---------- Nothing Studied --------- None Alien Tech Used ----------------- None Achievements -------------- None Challenges ------------ None Game ------ Seed ProcessingLinkedSheargun Manual? 0 Play Time 00:17:08 Cumulative 10.9 hours Start 2026.04.06 @ 20:10:32 End 2026.04.06 @ 20:27:01 Sessions 1 Manual Loads 0 Difficulty Rogue Special Mode None Game No. 4 Rogue 4 Adventurer 0 Explorer 0 Win Type - Total 0 Types 0/0/0/0/0/0/0/0/0/0 Lore% 5 Gallery% 10 Achievement% 19 Wizard Run 0 Options --------- Layout 1 ASCII 0 Keyboard 1 Movement Vi Keybinds 1 Fullscreen 2 Font 32/SmallcapsGlow Map View 50x35 Zoom Use 0% Tactical HUD 1 Map Filters NONE Filters NONE Steam 1 RUN: d18ed2e6-78ca-47ff-855d-6e9933000bd6